bitfinex/quotes_BTCUSD_20230108
["timestamp","ask_amount","ask_price","bid_price","bid_amount"]
[1673160279661,0.72837852,16956.0,16955.0,3.21126977]
[1673160279901,0.90542023,16956.0,16955.0,2.60384777]
[1673160280924,0.90542023,16956.0,16955.0,3.35013299]
[1673160283195,0.90542023,16956.0,16955.0,3.95755499]
[1673160284731,0.90542023,16956.0,16955.0,3.95748217]
[1673160284980,0.90542023,16956.0,16955.0,4.5513593]
[1673160285928,0.90542023,16956.0,16955.0,3.80507408]
[1673160287982,0.90542023,16956.0,16955.0,3.95748217]
[1673160288232,0.90542023,16956.0,16955.0,3.35006017]
[1673160289243,0.90542023,16956.0,16955.0,3.95748217]
[1673160291526,0.90542023,16956.0,16955.0,3.35006017]
[1673160292315,1.1709366,16956.0,16955.0,3.95748217]
[1673160292808,1.1709366,16956.0,16955.0,3.35006017]
[1673160293048,1.1709366,16956.0,16955.0,2.60377495]
[1673160293292,0.90542023,16956.0,16955.0,2.60377495]
[1673160294570,1.17092158,16956.0,16955.0,2.60377495]
[1673160295076,1.17092158,16956.0,16955.0,3.35006017]
[1673160295606,0.90542023,16956.0,16955.0,3.35006017]
[1673160296301,0.90542023,16956.0,16955.0,3.95748217]
[1673160297041,0.90542023,16956.0,16955.0,3.35006017]
[1673160297305,0.90542023,16956.0,16955.0,3.95748217]
[1673160298353,0.90542023,16956.0,16955.0,3.35006017]
[1673160299093,0.90542023,16956.0,16955.0,3.95748217]
[1673160300095,0.90542023,16956.0,16955.0,3.21119695]
[1673160300350,0.90542023,16956.0,16955.0,2.60377495]
[1673160302128,0.90542023,16956.0,16955.0,3.35006017]
[1673160302347,0.90542023,16956.0,16955.0,3.95748217]
[1673160302829,0.90542023,16956.0,16955.0,3.35006017]
[1673160303601,0.90542023,16956.0,16955.0,3.95748217]
[1673160304079,0.90542023,16956.0,16955.0,3.34989674]
[1673160307315,0.90542023,16956.0,16955.0,2.60361152]
[1673160307836,0.90542023,16956.0,16955.0,2.60379356]
[1673160308738,0.90542023,16956.0,16955.0,2.6036996]
[1673160309216,0.90542023,16956.0,16955.0,3.34998482]
[1673160310462,0.90542023,16956.0,16955.0,3.94386195]
[1673160311238,0.90542023,16956.0,16955.0,4.55128395]
[1673160312259,0.90542023,16956.0,16955.0,3.94386195]
[1673160313299,0.90542023,16956.0,16955.0,3.34998482]
[1673160314291,0.90542023,16956.0,16955.0,2.6036996]
[1673160316234,0.90542023,16956.0,16955.0,3.34998482]
[1673160319984,0.90542023,16956.0,16955.0,3.95740682]
[1673160320238,0.90542023,16956.0,16955.0,3.34998482]
[1673160320508,0.90542023,16956.0,16955.0,3.94386195]
[1673160320763,0.90542023,16956.0,16955.0,4.55128395]
[1673160321296,0.90542023,16956.0,16955.0,3.80499873]
[1673160322255,0.90542023,16956.0,16955.0,3.19757673]
[1673160322478,0.90530121,16956.0,16955.0,3.80499873]
[1673160322726,0.90530121,16956.0,16955.0,3.19757673]
[1673160323233,0.90530121,16956.0,16955.0,4.55128395]
[1673160324628,0.90530121,16956.0,16955.0,3.94386195]
[1673160324884,0.90530121,16956.0,16955.0,4.55128395]
[1673160325646,0.90530121,16956.0,16955.0,3.94386195]
[1673160326177,0.90530121,16956.0,16955.0,4.55128395]
[1673160326429,0.90530121,16956.0,16955.0,3.94386195]
[1673160326681,0.90530121,16956.0,16955.0,4.55128395]
[1673160326910,0.90530121,16956.0,16955.0,3.94386195]
[1673160327200,0.90530121,16956.0,16955.0,4.55128395]
[1673160327455,0.90530121,16956.0,16955.0,3.94386195]
[1673160327717,0.90530121,16956.0,16955.0,4.55128395]
[1673160328231,0.90530121,16956.0,16955.0,3.94386195]
[1673160331407,0.90530121,16956.0,16955.0,4.55128395]
[1673160331937,0.90530121,16956.0,16955.0,3.94386195]
[1673160332611,0.90530121,16956.0,16955.0,4.55128395]
[1673160333152,0.90530121,16956.0,16955.0,3.94386195]
[1673160333685,0.90530121,16956.0,16955.0,3.19757673]
[1673160335475,0.90530121,16956.0,16955.0,3.94386195]
[1673160336359,0.90530121,16956.0,16955.0,4.55128395]
[1673160337817,0.90530121,16956.0,16955.0,3.94386195]
[1673160338322,0.90530121,16956.0,16955.0,4.55128395]
[1673160338574,0.90530121,16956.0,16955.0,3.94386195]
[1673160340292,1.17087113,16956.0,16955.0,3.94386195]
[1673160341048,0.90530121,16956.0,16955.0,3.94386195]
[1673160341822,0.90530121,16956.0,16955.0,4.55128395]
[1673160342069,0.90530121,16956.0,16955.0,3.94386195]
[1673160342338,0.90530121,16956.0,16955.0,4.55128395]
[1673160342600,1.17087221,16956.0,16955.0,4.55128395]
[1673160342860,0.72830789,16956.0,16955.0,4.55128395]
[1673160343112,0.72830789,16956.0,16955.0,3.94386195]
[1673160344347,1.17087221,16956.0,16955.0,3.94386195]
[1673160344877,0.72830789,16956.0,16955.0,3.94386195]
[1673160345630,0.72830789,16956.0,16955.0,3.19757673]
[1673160346865,1.17087221,16956.0,16955.0,3.19757673]
[1673160347391,1.17087221,16956.0,16955.0,3.19748992]
[1673160347719,1.17087221,16956.0,16955.0,3.94377514]
[1673160348617,0.90530121,16956.0,16955.0,3.94377514]
[1673160348874,1.17087491,16956.0,16955.0,4.55119714]
[1673160349129,1.17087491,16956.0,16955.0,3.94377514]
[1673160349382,0.72831059,16956.0,16955.0,4.55119714]
[1673160349937,0.5513169,16956.0,16955.0,4.55119714]
[1673160350189,0.5513169,16956.0,16955.0,3.94377514]
[1673160352759,0.5513169,16956.0,16955.0,3.19748992]
[1673160354819,0.5513169,16956.0,16955.0,3.94377514]
[1673160358866,0.5513169,16956.0,16955.0,2.17438714]
[1673160359206,0.5513169,16956.0,16955.0,3.35397914]
[1673160359889,0.5513169,16956.0,16955.0,3.94377514]
[1673160360392,0.5513169,16956.0,16955.0,4.55119714]
[1673160360684,0.2857432,16956.0,16955.0,3.94377514]
[1673160360958,0.2857432,16956.0,16955.0,4.55119714]
[1673160361472,0.2857432,16956.0,16955.0,3.94377514]
[1673160362501,0.2857432,16956.0,16955.0,4.55119714]
[1673160362745,0.2857432,16956.0,16955.0,3.94377514]
[1673160362961,0.2857432,16956.0,16955.0,4.55119714]
[1673160363248,0.2857432,16956.0,16955.0,3.94377514]
[1673160363738,0.2857432,16956.0,16955.0,3.19748992]
[1673160364253,0.5513169,16956.0,16955.0,3.94377514]
[1673160365233,0.2857432,16956.0,16955.0,3.94377514]
[1673160365488,0.5513169,16956.0,16955.0,3.94377514]
[1673160366544,0.2857432,16956.0,16955.0,3.94377514]
[1673160367031,0.2857432,16956.0,16955.0,3.34989801]
[1673160369393,0.2857432,16956.0,16955.0,2.60361279]
[1673160370743,0.5513169,16956.0,16955.0,2.60361279]
[1673160371325,0.5513169,16956.0,16955.0,3.34989801]
[1673160371833,0.2857432,16956.0,16955.0,3.94377514]
[1673160372585,0.5513169,16956.0,16955.0,3.94377514]
[1673160376319,0.5513169,16956.0,16955.0,3.19748992]
[1673160378514,0.5513169,16956.0,16955.0,3.94377514]
[1673160383466,0.5513169,16956.0,16955.0,3.19748992]
[1673160385407,0.5513169,16956.0,16955.0,3.94377514]
[1673160389022,0.37426835,16956.0,16955.0,3.94377514]
[1673160389529,0.90536713,16956.0,16955.0,3.94377514]
[1673160390565,0.90536713,16956.0,16955.0,3.19748992]
[1673160392365,0.90536713,16956.0,16955.0,3.94377514]
[1673160392960,0.37426835,16956.0,16955.0,3.94377514]
[1673160394499,0.37426835,16956.0,16955.0,3.34989801]
[1673160397334,0.37426835,16956.0,16955.0,2.60361279]
[1673160399429,0.37426835,16956.0,16955.0,3.34989801]
[1673160404597,0.55132731,16956.0,16955.0,3.34989801]
[1673160404850,0.55132731,16956.0,16955.0,3.52687043]
[1673160405107,0.55132731,16956.0,16955.0,4.13429243]
[1673160405414,0.55132731,16956.0,16955.0,4.72816956]
[1673160406437,0.55132731,16956.0,16955.0,4.12074756]
[1673160406698,0.55132731,16956.0,16955.0,4.72816956]
[1673160406966,0.55132731,16956.0,16955.0,4.12074756]
[1673160407235,0.55132731,16956.0,16955.0,4.72816956]
[1673160407490,0.55132731,16956.0,16955.0,4.12074756]
[1673160407725,0.55132731,16956.0,16955.0,4.72816956]
[1673160408643,0.55132731,16956.0,16955.0,4.12074756]
[1673160408900,0.55132731,16956.0,16955.0,4.72816956]
[1673160409223,0.55132731,16956.0,16955.0,4.12074756]
[1673160409702,0.55132731,16956.0,16955.0,4.72816956]
[1673160410206,0.55132731,16956.0,16955.0,4.12074756]
[1673160410457,0.55132731,16956.0,16955.0,4.72816956]
[1673160410714,0.55132731,16956.0,16955.0,3.94377514]
[1673160411699,0.55132731,16956.0,16955.0,4.55119714]
[1673160412185,0.55132731,16956.0,16955.0,3.94377514]
[1673160412451,0.55132731,16956.0,16955.0,4.55119714]
[1673160413003,0.55132731,16956.0,16955.0,3.94377514]
[1673160413263,0.55132731,16956.0,16955.0,4.55119714]
[1673160414031,0.55132731,16956.0,16955.0,3.94377514]
[1673160414238,0.55132731,16956.0,16955.0,4.55119714]
[1673160415237,0.55132731,16956.0,16955.0,3.94377514]
[1673160417187,0.55132731,16956.0,16955.0,4.55119714]
[1673160417665,0.55132731,16956.0,16955.0,3.94377514]
[1673160417916,0.55132731,16956.0,16955.0,4.55119714]
[1673160418158,0.55132731,16956.0,16955.0,3.94377514]
[1673160418404,0.55132731,16956.0,16955.0,4.55119714]
[1673160419426,0.55132731,16956.0,16955.0,3.94377514]
[1673160419688,0.55132731,16956.0,16955.0,4.55119714]
[1673160420759,0.55132731,16956.0,16955.0,3.94377514]
[1673160421025,0.55132731,16956.0,16955.0,4.55119714]
[1673160421841,0.55132731,16956.0,16955.0,4.72816956]
[1673160422574,0.55132731,16956.0,16955.0,3.94377514]
[1673160423095,0.55132731,16956.0,16955.0,4.55119714]
[1673160425596,0.55132731,16956.0,16955.0,3.94377514]
[1673160426061,0.55132731,16956.0,16955.0,4.55119714]
[1673160426560,0.55132731,16956.0,16955.0,3.94377514]
[1673160426815,0.55132731,16956.0,16955.0,4.55119714]
[1673160428679,0.55132731,16956.0,16955.0,3.94377514]
[1673160429952,0.55132731,16956.0,16955.0,4.55119714]
[1673160430435,0.55132731,16956.0,16955.0,3.94377514]
[1673160433796,0.55132731,16956.0,16955.0,4.55119714]
[1673160434599,0.55132731,16956.0,16955.0,3.94377514]
[1673160435060,0.55132731,16956.0,16955.0,4.55119714]
[1673160435723,0.55132731,16956.0,16955.0,3.94377514]
[1673160435990,0.55132731,16956.0,16955.0,3.80491192]
[1673160436497,0.55132731,16956.0,16955.0,3.19748992]
[1673160437891,0.55132731,16956.0,16955.0,3.94377514]
[1673160438145,0.55132731,16956.0,16955.0,4.55119714]
[1673160438405,0.55132731,16956.0,16955.0,3.94377514]
[1673160438648,0.55132731,16956.0,16955.0,4.55119714]
[1673160439932,0.55132731,16956.0,16955.0,3.94377514]
[1673160440435,0.55132731,16956.0,16955.0,4.55119714]
[1673160441631,0.55132731,16956.0,16955.0,4.72816956]
[1673160442867,0.55132731,16956.0,16955.0,4.12074756]
[1673160443113,0.55132731,16956.0,16955.0,3.98188434]
[1673160445110,0.55132731,16956.0,16955.0,4.72816956]
[1673160447346,0.55132731,16956.0,16955.0,3.94377514]
[1673160447597,0.55132731,16956.0,16955.0,4.72816956]
[1673160448937,0.55132731,16956.0,16955.0,4.12074756]
[1673160449177,0.55132731,16956.0,16955.0,4.72816956]
[1673160449422,0.55132731,16956.0,16955.0,3.94377514]
[1673160449671,0.55132731,16956.0,16955.0,4.72816956]
[1673160449930,0.55132731,16956.0,16955.0,4.55119714]
[1673160450182,0.55132731,16956.0,16955.0,3.94377514]
[1673160450445,0.55132731,16956.0,16955.0,4.55119714]
[1673160451004,0.55132731,16956.0,16955.0,4.12074756]
[1673160451282,0.55132731,16956.0,16955.0,4.66296518]
[1673160451849,0.55132731,16956.0,16955.0,4.7376878]
[1673160452117,0.7431725,16956.0,16955.0,1.84911062]
[1673160452379,0.38905457,16956.0,16955.0,1.25931462]
[1673160452623,0.12348087,16956.0,16955.0,1.25922959]
[1673160454479,0.56581746,16956.0,16955.0,1.25922959]
[1673160455085,0.33215087,16956.0,16955.0,1.25922959]
[1673160456366,0.41752412,16956.0,16955.0,0.07963759]
[1673160456622,0.96940184,16956.0,16955.0,0.07963759]
[1673160457415,0.89659905,16956.0,16955.0,0.07963759]
[1673160458194,1.22998454,16956.0,16955.0,0.07963759]
[1673160458433,1.24543956,16956.0,16955.0,0.07963759]
[1673160458689,1.22998454,16956.0,16955.0,0.07963759]
[1673160459196,1.24487411,16956.0,16955.0,0.07963759]
[1673160460466,0.71457091,16956.0,16955.0,0.07963759]
[1673160461259,1.24487411,16956.0,16955.0,0.07963759]
[1673160462586,0.71457091,16956.0,16955.0,0.07963759]
[1673160470209,0.54047091,16956.0,16955.0,0.07963759]
[1673160470732,0.52558134,16956.0,16955.0,0.07963759]
[1673160470971,0.33042233,16956.0,16955.0,0.07963759]
[1673160472458,0.47546928,16956.0,16955.0,0.07963759]
[1673160472967,0.50322233,16956.0,16955.0,0.07963759]
[1673160473473,0.50322233,16956.0,16955.0,0.0795577]
[1673160474988,0.94437468,16956.0,16955.0,0.0795577]
[1673160480589,0.94447991,16956.0,16955.0,0.0795577]
[1673160482524,0.50322233,16956.0,16955.0,0.0795577]
[1673160483415,0.94457153,16956.0,16955.0,0.0795577]
[1673160484363,0.15762233,16956.0,16955.0,0.0795577]
[1673160485566,0.15762233,16956.0,16955.0,0.0745577]
[1673160487728,0.15762233,16956.0,16955.0,0.0695577]
[1673160488483,0.68792553,16956.0,16955.0,0.0695577]
[1673160492375,0.15762233,16956.0,16955.0,0.0695577]
[1673160493833,0.12220564,16956.0,16955.0,0.0695577]
[1673160498071,0.12220564,16956.0,16955.0,0.81584292]
[1673160503020,0.12220564,16956.0,16955.0,0.0695577]
[1673160504331,0.65330162,16956.0,16955.0,0.0695577]
[1673160505769,0.12220564,16956.0,16955.0,0.0695577]
[1673160511356,0.12220564,16956.0,16955.0,0.06945325]
[1673160512879,0.65333343,16956.0,16955.0,0.06945325]
[1673160518753,0.12220564,16956.0,16955.0,0.06945325]
[1673160519526,0.65333819,16956.0,16955.0,0.06945325]
[1673160520041,0.12220564,16956.0,16955.0,0.06945325]
[1673160520293,0.12220564,16956.0,16955.0,0.06956621]
[1673160520547,0.65334288,16956.0,16955.0,0.06956621]
[1673160520827,0.12220564,16956.0,16955.0,0.06945325]
[1673160521314,0.12220564,16956.0,16955.0,0.06956621]
[1673160521833,0.12220564,16956.0,16955.0,0.06945325]
[1673160525299,0.12220564,16956.0,16955.0,0.06956621]
[1673160525526,0.12220564,16956.0,16955.0,0.06945325]
[1673160527153,0.12220564,16956.0,16955.0,0.06956621]
[1673160527416,0.12220564,16956.0,16955.0,0.06945325]
[1673160528915,0.12220564,16956.0,16955.0,0.06956621]
[1673160529416,0.12220564,16956.0,16955.0,0.06945325]
[1673160529917,0.12220564,16956.0,16955.0,0.06956621]
[1673160530186,0.12220564,16956.0,16955.0,0.81573847]
[1673160531183,0.12220564,16956.0,16955.0,0.81585143]
[1673160532677,0.12220564,16956.0,16955.0,0.81573847]
[1673160533249,0.12220564,16956.0,16955.0,0.81562913]
[1673160534556,0.65346251,16956.0,16955.0,0.81562913]
[1673160535329,0.65346251,16956.0,16955.0,0.06934391]
[1673160535853,0.12220564,16956.0,16955.0,0.06934391]
[1673160536109,0.65345659,16956.0,16955.0,0.06934391]
[1673160536434,0.65345659,16956.0,16955.0,0.06945687]
[1673160537247,0.65345659,16956.0,16955.0,0.81574209]
[1673160537771,0.65345659,16956.0,16955.0,0.81562913]
[1673160539412,0.65345659,16956.0,16955.0,0.81574209]
[1673160540216,0.65345659,16956.0,16955.0,0.81562913]
[1673160542281,0.65345659,16956.0,16955.0,0.06934391]
[1673160544063,0.65345659,16956.0,16955.0,0.06945687]
[1673160544436,0.65345659,16956.0,16955.0,0.81562913]
[1673160546055,0.65345659,16956.0,16955.0,0.81574209]
[1673160547994,0.65345659,16956.0,16955.0,0.81562913]
[1673160549293,0.65345659,16956.0,16955.0,0.06934391]
[1673160551424,0.65345659,16956.0,16955.0,0.81562913]
[1673160551992,0.65343566,16956.0,16955.0,0.81562913]
[1673160554704,0.65343566,16956.0,16955.0,0.81574209]
[1673160555928,0.65343566,16956.0,16955.0,0.81564532]
[1673160556433,0.65343566,16956.0,16955.0,0.0693601]
[1673160556685,0.65343566,16956.0,16955.0,0.06924714]
[1673160558492,0.65343566,16956.0,16955.0,0.81553236]
[1673160558755,0.65343566,16956.0,16955.0,0.81564532]
[1673160559256,0.65332827,16956.0,16955.0,0.81564532]
[1673160559505,0.65332827,16956.0,16955.0,1.31564532]
[1673160561824,0.65332827,16956.0,16955.0,1.31553236]
[1673160562141,0.65332827,16956.0,16955.0,1.31564532]
[1673160563614,0.65332827,16956.0,16955.0,0.5693601]
[1673160565457,0.65332827,16956.0,16955.0,1.31564532]
[1673160569906,0.65332827,16956.0,16955.0,1.31553236]
[1673160570645,0.65332827,16956.0,16955.0,0.56924714]
[1673160572670,0.65332827,16956.0,16955.0,1.31553236]
[1673160573670,0.65332827,16956.0,16955.0,1.31564532]
[1673160575954,0.65332827,16956.0,16955.0,1.31553236]
[1673160577223,0.65332827,16956.0,16955.0,1.31564532]
[1673160577722,0.65332827,16956.0,16955.0,0.5693601]
[1673160579738,0.65332827,16956.0,16955.0,1.31564532]
[1673160580503,0.10858726,16956.0,16955.0,3.08911445]
[1673160582551,0.55114338,16956.0,16955.0,3.08911445]
[1673160582799,0.10858726,16956.0,16955.0,3.08911445]
[1673160584065,0.10858726,16956.0,16955.0,2.34273237]
[1673160584873,0.10858726,16956.0,16955.0,3.08901759]
[1673160585102,0.55107012,16956.0,16955.0,3.08901759]
[1673160585854,0.55102156,16956.0,16955.0,3.08901759]
[1673160587131,0.55102156,16956.0,16955.0,2.49514046]
[1673160587625,0.55102294,16956.0,16955.0,2.49514046]
[1673160587879,0.55099781,16956.0,16955.0,2.49514046]
[1673160589115,0.10858726,16956.0,16955.0,2.49514046]
[1673160589355,0.55099188,16956.0,16955.0,2.49514046]
[1673160589972,0.55099188,16956.0,16955.0,1.74885524]
[1673160591864,0.55099188,16956.0,16955.0,2.49514046]
[1673160596925,0.55099188,16956.0,16955.0,1.74885524]
[1673160598873,0.55099188,16956.0,16955.0,2.49514046]
[1673160603977,0.55099188,16956.0,16955.0,1.74885524]
[1673160605967,0.55099188,16956.0,16955.0,2.49514046]
[1673160606238,0.55099188,16956.0,16955.0,2.49502745]
[1673160610983,0.55099188,16956.0,16955.0,1.74874223]
[1673160612993,0.55099188,16956.0,16955.0,2.49502745]
[1673160614028,0.10858726,16956.0,16955.0,2.49502745]
[1673160616261,0.90514263,16956.0,16955.0,2.49502745]
[1673160617763,0.55113208,16956.0,16955.0,2.49502745]
[1673160618016,0.55113208,16956.0,16955.0,1.74874223]
[1673160619508,0.55113208,16956.0,16955.0,1.74862927]
[1673160620007,0.55113208,16956.0,16955.0,2.49491449]
[1673160621796,0.55113208,16956.0,16955.0,3.08891712]
[1673160622065,0.55113208,16956.0,16955.0,4.3954318]
[1673160622066,0.72820586,16956.0,16955.0,4.3954318]
[1673160622797,0.55112827,16956.0,16955.0,4.3954318]
[1673160623051,0.90519623,16956.0,16955.0,4.3954318]
[1673160623314,0.55112827,16956.0,16955.0,4.98930893]
[1673160625097,0.55112827,16956.0,16955.0,4.24302371]
[1673160627019,0.55112827,16956.0,16955.0,4.98930893]
[1673160627782,0.28557763,16956.0,16955.0,4.98930893]
[1673160629028,0.28557763,16956.0,16955.0,4.3954318]
[1673160633916,0.55112827,16956.0,16955.0,4.3954318]
[1673160634154,0.28557763,16956.0,16955.0,4.3954318]
[1673160638838,0.55112827,16956.0,16955.0,4.3954318]
[1673160639307,0.55112827,16956.0,16955.0,3.64914658]
[1673160639523,0.55112827,16956.0,16955.0,3.04172458]
[1673160642664,0.28557763,16956.0,16955.0,3.04172458]
[1673160643099,0.55112827,16956.0,16955.0,3.04172458]
[1673160643601,0.55112827,16956.0,16955.0,3.7880098]
[1673160644545,0.55112827,16956.0,16955.0,4.3954318]
[1673160648315,0.55112827,16956.0,16955.0,3.7880098]
[1673160648561,0.55112827,16956.0,16955.0,3.04172458]
[1673160649052,0.55112827,16956.0,16955.0,3.63560171]
[1673160649269,0.28557763,16956.0,16955.0,4.24302371]
[1673160650527,0.28557763,16956.0,16955.0,4.98930893]
[1673160661110,0.28557763,16956.0,16955.0,5.16628135]
[1673160661364,0.28557763,16956.0,16955.0,4.98930893]
[1673160661844,0.28557763,16956.0,16955.0,5.16628135]
[1673160663842,0.10858726,16956.0,16955.0,5.16628135]
[1673160664078,0.28557763,16956.0,16955.0,5.16628135]
[1673160664599,0.28557763,16956.0,16955.0,4.98930893]
[1673160666014,0.28557763,16956.0,16955.0,4.38188693]
[1673160666828,0.28557763,16956.0,16955.0,3.7880098]
[1673160673471,0.28548135,16956.0,16955.0,3.7880098]
[1673160677812,0.10849098,16956.0,16955.0,3.7880098]
[1673160679547,0.10849098,16956.0,16955.0,4.3954318]
[1673160681059,0.28548135,16956.0,16955.0,3.7880098]
[1673160681603,0.28548135,16956.0,16955.0,4.38188693]
[1673160686538,0.28548135,16956.0,16955.0,4.98930893]
[1673160688406,0.55103199,16956.0,16955.0,4.55885935]
[1673160688651,0.55103199,16956.0,16955.0,5.16628135]
[1673160690693,0.28548135,16956.0,16955.0,5.16628135]
[1673160691237,0.55103199,16956.0,16955.0,5.16628135]
[1673160694723,0.55103199,16956.0,16955.0,4.55885935]
[1673160695687,0.55103199,16956.0,16955.0,5.16628135]
[1673160695941,0.28548135,16956.0,16955.0,5.16628135]
[1673160696819,0.55103199,16956.0,16955.0,5.16628135]
[1673160697376,0.28548135,16956.0,16955.0,5.16628135]
[1673160699989,0.55103199,16956.0,16955.0,5.16628135]
[1673160701391,0.28548135,16956.0,16955.0,5.16628135]
[1673160702460,0.55103199,16956.0,16955.0,5.16628135]
[1673160702710,0.28548135,16956.0,16955.0,5.16628135]
[1673160714029,0.28548135,16956.0,16955.0,4.55885935]
[1673160720713,0.28548135,16956.0,16955.0,5.43182082]
[1673160720959,0.28548135,16956.0,16955.0,5.16628135]
[1673160721404,0.28548135,16956.0,16955.0,5.43182082]
[1673160721614,0.28548135,16956.0,16955.0,5.16628135]
[1673160723125,0.28548135,16956.0,16955.0,5.43182082]
[1673160727525,0.28056135,16956.0,16955.0,5.43182082]
[1673160730996,0.10357098,16956.0,16955.0,5.43182082]
[1673160731221,0.10357098,16956.0,16955.0,6.30341993]
[1673160731442,0.10357098,16956.0,16955.0,6.30323977]
[1673160732960,0.10357098,16956.0,16955.0,5.43164066]
[1673160734033,0.10357098,16956.0,16955.0,6.30324006]
[1673160735180,0.10357098,16956.0,16955.0,5.43164066]
[1673160735515,0.10357098,16956.0,16955.0,5.69581804]
[1673160735759,0.10357098,16956.0,16955.0,6.30324004]
[1673160736606,0.28056135,16956.0,16955.0,5.43164066]
[1673160736878,0.28056135,16956.0,16955.0,4.82421866]
[1673160737128,0.10357098,16956.0,16955.0,5.695818]
[1673160737423,0.10357098,16956.0,16955.0,6.30324]
[1673160746132,0.10357098,16956.0,16955.0,6.48021241]
[1673160746382,0.10357098,16956.0,16955.0,6.65712117]
[1673160746911,0.10357098,16956.0,16955.0,6.30317634]
[1673160747168,0.10357098,16956.0,16955.0,6.65712117]
[1673160747416,0.10357098,16956.0,16955.0,6.30317634]
[1673160747639,0.10357098,16956.0,16955.0,6.65712117]
[1673160748152,0.10357098,16956.0,16955.0,6.30317634]
[1673160751930,0.10357098,16956.0,16955.0,5.69575434]
[1673160753585,0.10357098,16956.0,16955.0,5.62689723]
[1673160754091,0.10357098,16956.0,16955.0,5.70283425]
[1673160761097,0.10357098,16956.0,16955.0,5.87987032]
[1673160761342,0.10357098,16956.0,16955.0,6.0567786]
[1673160761586,0.10357098,16956.0,16955.0,6.6642006]
[1673160761854,0.10357098,16956.0,16955.0,6.48729232]
[1673160770878,0.10357098,16956.0,16955.0,6.0567768]
[1673160771367,0.10357098,16956.0,16955.0,5.46289967]
[1673160771622,0.10357098,16956.0,16955.0,5.10895484]
[1673160772396,0.10339217,16956.0,16955.0,5.10895484]
[1673160773395,0.10339217,16956.0,16955.0,5.46289967]
[1673160774815,0.10339217,16956.0,16955.0,5.10895484]
[1673160775341,0.10339217,16956.0,16955.0,5.70283197]
[1673160776689,0.10339217,16956.0,16955.0,4.95654675]
[1673160777734,0.10339217,16956.0,16955.0,5.1335851]
[1673160778773,0.10339217,16956.0,16955.0,6.05679428]
[1673160779026,0.10339217,16956.0,16955.0,6.66421628]
[1673160779279,0.10339217,16956.0,16955.0,6.48729232]
[1673160793255,0.10339217,16956.0,16955.0,6.48720292]
[1673160798689,0.10339217,16956.0,16955.0,5.89332579]
[1673160798906,0.10339217,16956.0,16955.0,5.28590379]
[1673160800619,0.10339217,16956.0,16955.0,4.53961857]
[1673160802728,0.10339217,16956.0,16955.0,5.28590379]
[1673160803011,0.10339217,16956.0,16955.0,5.89332579]
[1673160804140,0.10339217,16956.0,16955.0,6.48720292]
[1673160806025,0.10339217,16956.0,16955.0,5.87978092]
[1673160806279,0.10339217,16956.0,16955.0,6.48720292]
[1673160811058,0.10339217,16956.0,16955.0,5.87978092]
[1673160811812,0.10339217,16956.0,16955.0,6.05673422]
[1673160812054,0.10339217,16956.0,16955.0,6.07027909]
[1673160812544,0.10339217,16956.0,16955.0,5.46285709]
[1673160813300,0.10339217,16956.0,16955.0,5.10891226]
[1673160813516,0.10339217,16956.0,16955.0,5.46285709]
[1673160814046,0.10339217,16956.0,16955.0,5.28590379]
[1673160814268,0.10339217,16956.0,16955.0,5.87978092]
[1673160815652,0.10339217,16956.0,16955.0,5.1334957]
[1673160817621,0.10339217,16956.0,16955.0,5.87978092]
[1673160821669,0.10330906,16956.0,16955.0,5.87978092]
[1673160822642,0.10330906,16956.0,16955.0,6.48720292]
[1673160826029,0.10330906,16956.0,16955.0,5.87978092]
[1673160830260,0.10330906,16956.0,16955.0,6.32226214]
[1673160830527,0.10330906,16956.0,16955.0,6.32213064]
[1673160830783,0.10330906,16956.0,16955.0,5.87964942]
[1673160847485,0.10330906,16956.0,16955.0,6.05672267]
[1673160848977,0.10330906,16956.0,16955.0,6.32216545]
[1673160849237,0.10330906,16956.0,16955.0,5.87968423]
[1673160867437,0.10330906,16956.0,16955.0,6.05672267]
[1673160867667,0.10330906,16956.0,16955.0,6.66414467]
[1673160868432,0.10330906,16956.0,16955.0,6.05672267]
[1673160869651,0.10330906,16956.0,16955.0,6.66414467]
[1673160870699,0.10330906,16956.0,16955.0,6.48709568]
[1673160871184,0.10330906,16956.0,16955.0,5.87967368]
[1673160871672,0.10330906,16956.0,16955.0,6.48709568]
[1673160872421,0.10317539,16956.0,16955.0,6.48709568]
[1673160873454,0.10317539,16956.0,16955.0,5.87967368]
[1673160874576,0.10317539,16956.0,16955.0,6.48709568]
[1673160874838,0.10317539,16956.0,16955.0,6.9295769]
[1673160876187,0.10317539,16956.0,16955.0,6.3221549]
[1673160878250,0.10317539,16956.0,16955.0,5.87967368]
[1673160880825,0.10317539,16956.0,16955.0,6.3221549]
[1673160881372,0.10317539,16956.0,16955.0,5.87967368]
[1673160882293,0.10317539,16956.0,16955.0,6.3221549]
[1673160882752,0.10317539,16956.0,16955.0,6.9295769]
[1673160882989,0.10317539,16956.0,16955.0,6.92958329]
[1673160883244,0.10317539,16956.0,16955.0,6.48710207]
[1673160884585,0.10317539,16956.0,16955.0,6.92958329]
[1673160885926,0.10317539,16956.0,16955.0,6.48710207]
[1673160886158,0.10317539,16956.0,16955.0,6.66414467]
[1673160886645,0.45617495,16958.0,16956.0,0.5]
[1673160886900,0.44254101,16958.0,16957.0,2.56277028]
[1673160887975,0.44254101,16958.0,16957.0,2.57377028]
[1673160887976,0.46354101,16958.0,16957.0,2.57377028]
[1673160888226,0.6406186,16958.0,16957.0,2.64822986]
[1673160889802,0.46357782,16958.0,16957.0,2.64822986]
[1673160890541,0.46357782,16958.0,16957.0,2.64835379]
[1673160890795,0.81764578,16958.0,16957.0,2.64835379]
[1673160892489,0.6406186,16958.0,16957.0,2.64835379]
[1673160895267,0.81764461,16958.0,16957.0,2.64835379]
[1673160895531,0.6406186,16958.0,16957.0,2.64835379]
[1673160897556,0.81764598,16958.0,16957.0,2.64835379]
[1673160898575,0.6406186,16958.0,16957.0,2.64835379]
[1673160898835,0.81764581,16958.0,16957.0,2.64835379]
[1673160899311,0.81764613,16958.0,16957.0,2.64835379]
[1673160899563,0.6406186,16958.0,16957.0,2.64835379]
[1673160900825,0.81764621,16958.0,16957.0,2.64835379]
[1673160901091,0.6406186,16958.0,16957.0,1.90476151]
[1673160901318,0.6406186,16958.0,16957.0,1.89828851]
[1673160903330,0.6406186,16958.0,16957.0,2.64188079]
[1673160903582,0.81761278,16958.0,16957.0,2.64175686]
[1673160904097,1.08316923,16958.0,16957.0,2.64175686]
[1673160904352,1.08316933,16958.0,16957.0,2.64175686]
[1673160904606,0.64062451,16958.0,16957.0,2.64175686]
[1673160904866,1.08316933,16958.0,16957.0,2.64175686]
[1673160906127,0.64062451,16958.0,16957.0,2.64175686]
[1673160906418,1.08316933,16958.0,16957.0,2.64175686]
[1673160906673,1.08316933,16958.0,16957.0,2.59822986]
[1673160906929,0.81761278,16958.0,16957.0,2.59822986]
[1673160907180,0.81761278,16958.0,16957.0,2.59835379]
[1673160908476,0.81761278,16958.0,16957.0,1.85476151]
[1673160910560,0.81761278,16958.0,16957.0,2.59835379]
[1673160911061,1.08315343,16958.0,16957.0,2.59835379]
[1673160911328,0.64060861,16958.0,16957.0,2.59835379]
[1673160912589,0.81761278,16958.0,16957.0,2.59835379]
[1673160915438,0.81761278,16958.0,16957.0,1.85476151]